[Event "Uppsala GM June 2022"]
[Site "Uppsala"]
[Date "2022.06.13"]
[Round "1.1"]
[White "Chatalbashev, Boris"]
[Black "Nilsson, Joakim"]
[Result "1-0"]
[ECO "D36"]
[WhiteElo "2536"]
[BlackElo "2237"]
[Annotator "TA"]
[PlyCount "59"]
[EventDate "2022.06.09"]
[EventType "tourn"]
[EventCountry "SWE"]
[SourceTitle "playchess.com"]
[Source "ChessBase"]
[SourceQuality "1"]
[TimeControl "5400+30"]

{[%evp 17,59,18,29,18,20,25,27,21,45,29,36,41,37,5,20,14,224,225,244,231,238,237,237,229,231,224,375,358,430,420,438,433,416,431,432,423,447,431,524,397,511,529,545,495]} 1. c4 {[%emt 0:00:06]} e6 {[%emt 0:00:06]} 2. Nc3 {[%emt 0:00:22]} d5 {[%emt 0:00:07]} 3. d4 {[%emt 0:00:07]} Nf6 {[%emt 0:00:04]} 4. cxd5 {[%emt 0:00:08]} exd5 {[%emt 0:00:06]} 5. Bg5 {[%emt 0:00:05]} Be7 {[%emt 0:00:07]} 6. e3 {[%emt 0:00:06]} c6 {[%emt 0:00:05]} 7. Bd3 {[%emt 0:00:18]} Nbd7 {[%emt 0:00:05]} 8. Qc2 {[%emt 0:00:20]} h6 {[%emt 0:00:06]} 9. Bh4 {[%emt 0:00:39]} Nh5 {[%emt 0:00:07] The modern move.} 10. Bxe7 {[%emt 0:00:07] D36: Queen's Gambit Declined: Exchange Variation: Main line (5 Bg5 c6 6 Qc2).} Qxe7 {[%emt 0:00:06]} 11. O-O-O {[%emt 0:00:23]} Nb6 {[%emt 0:00:25]} 12. h3 {[%emt 0:00:47] White has an edge.} Bd7 {[%emt 0:04:40]} 13. Nf3 {[%emt 0:00:14][%cal Bg1f3,Bf3e5,Be5f7][%mdl 32]} O-O-O {[%emt 0:02:27]} 14. Ne5 {[%emt 0:04:44]} Nf6 {[%emt 0:12:40] [#]} 15. g4 $146 {[%emt 0:00:36]} ({Predecessor:} 15. Kb1 Kb8 16. Rc1 Ne8 17. Na4 Nxa4 18. Qxa4 Nd6 19. Rc3 Be8 20. Ra3 Nc8 21. Qa5 {0-1 (72) Girish,A (2506)-Rafiee,M (2335) Sitges 2019}) 15... Kb8 {[%emt 0:01:20]} 16. f4 {[%emt 0:03:04]} c5 $2 {[%emt 0:08:50] Black cannot hold the game after this.} (16... h5 $11 {and Black stays safe.}) 17. dxc5 $1 $18 {[%emt 0:03:11]} Qxc5 {[%emt 0:04:02]} 18. Nxf7 {[%emt 0:00:42]} Qxe3+ {[%emt 0:00:15] [#]} 19. Qd2 $1 {[%emt 0:04:30]} Qc5 {[%emt 0:04:46]} 20. Kb1 {[%emt 0:02:31]} d4 {[%emt 0:01:09] [#]} 21. Ne2 {[%emt 0:00:49]} ({Weaker is} 21. Nxh8 dxc3 22. Qxc3 Qxc3 23. bxc3 Rxh8 $17) 21... Be6 $2 {[%emt 0:01:31]} (21... Bc6 {was necessary.}) 22. Nxh8 {[%emt 0:01:04]} ({Much less strong is} 22. Nxd8 Rxd8 23. f5 Bd5 $18) 22... Qd5 {[%emt 0:02:07] [#]} 23. b3 $1 {[%emt 0:06:12]} Rxh8 {[%emt 0:03:55]} 24. f5 {[%emt 0:00:41]} Bf7 {[%emt 0:00:13]} 25. Qf4+ {[%emt 0:00:36]} Ka8 {[%emt 0:00:08]} 26. Qxd4 {[%emt 0:00:47]} Qa5 {[%emt 0:00:21]} 27. Rc1 {[%emt 0:06:23]} Nbd5 {[%emt 0:02:32]} 28. Qc5 {[%emt 0:03:36]} Qd8 {[%emt 0:00:18] Inhibits Qc8+.} 29. Rhd1 {[%emt 0:00:47]} Re8 {[%emt 0:00:31]} 30. Bb5 {[%emt 0:00:57] Weighted Error Value: White=0.07 (flawless) /Black=0.49} 1-0

[Event "Uppsala GM June 2022"]
[Site "Uppsala"]
[Date "2022.06.13"]
[Round "1.2"]
[White "Sorensen, Hampus"]
[Black "Von Bahr, Oskar"]
[Result "1/2-1/2"]
[ECO "E08"]
[WhiteElo "2372"]
[BlackElo "2373"]
[Annotator "TA"]
[PlyCount "80"]
[EventDate "2022.06.09"]
[EventType "tourn"]
[EventCountry "SWE"]
[SourceTitle "playchess.com"]
[Source "ChessBase"]
[SourceQuality "1"]
[TimeControl "5400+30"]

{[%evp 20,80,18,0,35,29,28,29,29,32,39,28,36,18,21,0,24,22,21,0,0,5,32,16,69,28,18,8,34,0,0,0,36,46,40,54,35,35,50,16,32,18,66,9,65,46,44,44,46,38,31,12,11,8,11,0,0,0,0,0,2,0,0]} 1. d4 {[%emt 0:00:06]} Nf6 {[%emt 0:00:05]} 2. c4 {[%emt 0:00:12]} e6 {[%emt 0:00:11]} 3. Nf3 {[%emt 0:00:32]} d5 {[%emt 0:00:18]} 4. g3 {[%emt 0:02:15]} Bb4+ {[%emt 0:00:10]} 5. Bd2 {[%emt 0:00:11]} Be7 {[%emt 0:00:06]} 6. Bg2 {[%emt 0:00:35]} O-O {[%emt 0:00:10]} 7. O-O {[%emt 0:00:22]} Nbd7 {[%emt 0:00:27]} 8. Qc2 {[%emt 0:02:42]} c6 {[%emt 0:00:20]} 9. Bf4 {[%emt 0:03:32]} b6 {[%emt 0:00:59]} 10. Rd1 {[%emt 0:03:41]} Bb7 {[%emt 0:02:52]} 11. Ne5 {[%emt 0:01:19] 11.Ne5 scores better than 11.Nc3.} Nxe5 {[%emt 0:05:10] E08: Closed Catalan: Main Line: 7 Qc2.} 12. dxe5 {[%emt 0:03:41]} Nd7 {[%emt 0:00:06]} 13. cxd5 $1 {[%emt 0:10:09]} exd5 {[%emt 0:04:44] White has an edge.} 14. e4 {[%emt 0:14:53][%cal Re4d5]} (14. Nc3 {is interesting.} g5 15. Qf5 gxf4 16. Be4) 14... d4 {[%emt 0:01:08]} 15. Rxd4 {[%emt 0:02:00] [#] Black must now prevent Bh3.} Bc5 $1 {[%emt 0:00:50]} 16. Rd1 {[%emt 0:03:28] aiming for Qd2.} Qe7 {[%emt 0:01:34]} 17. Qc3 {[%emt 0:22:39]} Rfe8 {[%emt 0:15:43]} (17... Rad8 $5 {[%cal Rd7e5]}) 18. Nd2 {[%emt 0:00:17]} Nxe5 {[%emt 0:10:38] [#]} 19. Nb3 $146 {[%emt 0:00:55]} ({Predecessor:} 19. Bxe5 Qxe5 20. Qxe5 Rxe5 21. Nb3 Bf8 22. Rd7 Bc8 23. Rd8 Bb7 24. Rd7 Bc8 25. Rd8 {1-0 (55) Van Foreest,L (2572)-Orlov,A (2491) Germany 2022}) 19... Bd6 {[%emt 0:09:26]} 20. Nd4 {[%emt 0:01:11] [#] Hoping for Nf5.} Bb4 {[%emt 0:02:31]} 21. Qc2 {[%emt 0:03:01]} Bc5 {[%emt 0:03:16]} (21... Qf6 $11) 22. Nf5 {[%emt 0:03:02]} Qf6 {[%emt 0:01:46]} 23. h3 {[%emt 0:03:32]} Rad8 {[%emt 0:02:11]} 24. Rxd8 {[%emt 0:03:59]} Rxd8 {[%emt 0:00:51]} 25. Rd1 {[%emt 0:00:12] Against Nd3} Ng6 {[%emt 0:02:34]} 26. Bd2 {[%emt 0:05:11] Bc3 is the strong threat.} Qe6 {[%emt 0:08:28]} 27. Bc3 {[%emt 0:02:34][%csl LRd8,LRg7]} Rxd1+ {[%emt 0:01:07]} 28. Qxd1 {[%emt 0:00:01]} Bf8 $1 {[%emt 0:00:51]} 29. h4 {[%emt 0:02:35]} Ne7 {[%emt 0:07:40]} 30. Qg4 {[%emt 0:01:27][%cal Rc3g7]} g6 {[%emt 0:02:40]} (30... Nxf5 $11 31. exf5 Qd7) 31. Nxe7+ {[%emt 0:01:30]} (31. h5 $14) 31... Bxe7 {[%emt 0:00:29]} ({Black should play} 31... Qxe7 $11 32. Qf4 c5) 32. Qxe6 {[%emt 0:01:53]} (32. Qf4 {with more complications.} Bd6 33. e5 Bc7 34. a3) 32... fxe6 $14 {[%emt 0:00:03][%mdl 4096] Endgame KBB-KBB} 33. e5 {[%emt 0:00:03]} Kf7 {[%emt 0:02:15]} 34. Be4 {[%emt 0:00:06]} Ke8 {[%emt 0:01:30]} 35. Kg2 {[%emt 0:02:08]} Kd7 {[%emt 0:02:39] The position is equal.} 36. Kh3 {[%emt 0:00:37]} Ba6 {[%emt 0:00:56]} 37. Kg4 {[%emt 0:00:31]} Be2+ {[%emt 0:02:58]} 38. f3 {[%emt 0:00:05]} Bc4 $1 {[%emt 0:00:38]} 39. Bb1 {[%emt 0:00:47]} Ke8 {[%emt 0:00:49]} 40. a3 {[%emt 0:00:24]} Kf7 {[%emt 0:00:46] Weighted Error Value: White=0.12 (very precise) /Black=0.13 (very precise)} 1/2-1/2

[Event "Uppsala GM June 2022"]
[Site "Uppsala"]
[Date "2022.06.17"]
[Round "1.4"]
[White "Peng, Li Min"]
[Black "Roshka, Yevgeniy"]
[Result "1/2-1/2"]
[ECO "B13"]
[WhiteElo "2506"]
[BlackElo "2468"]
[Annotator "TA"]
[PlyCount "121"]
[EventDate "2022.06.09"]
[EventType "tourn"]
[EventCountry "SWE"]
[SourceTitle "playchess.com"]
[Source "ChessBase"]
[SourceQuality "1"]
[TimeControl "5400+30"]

{[%evp 11,121,-6,19,10,33,8,5,6,5,0,0,2,2,-4,9,0,0,0,0,0,0,0,14,16,6,0,0,0,16,3,4,4,26,26,30,13,41,-75,-75,-75,-83,-158,-157,-163,-160,-162,-94,-95,-91,-103,-2,-96,-90,-98,-80,-80,-75,-79,-67,-61,-66,-58,-57,-40,-49,-57,-44,-57,-58,-44,-17,-58,0,0,0,0,0,0,0,0,0,0,0,0,0,0,0,0,0,0,0,0,0,0,0,0,0,0,0,0,0,0,0,0,0,0,0,0,0,0,0,0]} 1. e4 {[%emt 0:00:40]} c6 {[%emt 0:02:23]} 2. d4 {[%emt 0:00:17]} d5 {[%emt 0:00:05]} 3. exd5 {[%emt 0:00:04]} cxd5 {[%emt 0:00:07]} 4. Bd3 {[%emt 0:00:05]} Nc6 {[%emt 0:00:31]} 5. c3 {[%emt 0:00:12]} Nf6 {[%emt 0:00:01]} 6. Ne2 {[%emt 0:00:11]} g6 {[%emt 0:03:08]} 7. O-O {[%emt 0:01:26] B13: Caro-Kann: Exchange Variation and Panov-Botvinnik Attack.} Bf5 {[%emt 0:00:08]} 8. Re1 {[%emt 0:00:12]} Bxd3 {[%emt 0:00:08]} 9. Qxd3 {[%emt 0:00:05]} Bg7 {[%emt 0:00:06]} 10. Bf4 {[%emt 0:02:58]} O-O {[%emt 0:00:12] [#]} 11. Nd2 $146 {[%emt 0:00:54]} ({Predecessor:} 11. Ng3 Nd7 12. Nd2 e5 13. dxe5 Ndxe5 14. Bxe5 Nxe5 15. Qb5 a6 16. Qb3 d4 17. cxd4 Qxd4 {0-1 (26) Minko,D (2085)-Supriya,J (1941) Barcelona 2018}) 11... Rc8 {[%emt 0:06:43]} 12. a4 {[%emt 0:17:12]} Qd7 {[%emt 0:00:33]} 13. a5 {[%emt 0:00:17]} Nh5 {[%emt 0:05:55]} 14. Nb3 {[%emt 0:08:45]} Nxf4 {[%emt 0:03:25]} 15. Nxf4 {[%emt 0:00:01]} Qd6 {[%emt 0:00:33]} 16. Qf3 {[%emt 0:00:14]} Rfd8 {[%emt 0:01:31]} 17. Nd3 {[%emt 0:09:21]} Re8 {[%emt 0:02:56]} 18. Nf4 {[%emt 0:00:01]} Red8 {[%emt 0:00:14]} 19. Nd3 {[%emt 0:00:01]} Rc7 {[%emt 0:03:06]} 20. Qg3 {[%emt 0:00:14]} Qxg3 {[%emt 0:01:31]} 21. hxg3 {[%emt 0:00:02]} e6 {[%emt 0:03:59]} 22. g4 {[%emt 0:00:17]} Rb8 {[%emt 0:01:30]} 23. Nbc5 {[%emt 0:00:59]} Re7 {[%emt 0:00:38]} 24. b4 {[%emt 0:01:55]} (24. f4 $14) 24... b6 $17 {[%emt 0:01:17]} 25. axb6 {[%emt 0:05:26]} axb6 {[%emt 1:02:20]} 26. Na6 {[%emt 0:09:03] [#]} (26. Nb3 $142) 26... Rc8 $1 {[%emt 0:00:00]} 27. b5 {[%emt 0:43:08]} Na7 {[%emt 0:00:00][%csl LRb5,LRc3]} 28. Nab4 {[%emt 0:00:00][%cal Ba6b4,Bb4d5,Bd5b6,Bb6d7,Bd7e5][%mdl 32]} Nxb5 {[%emt 0:00:00]} ({Black should try} 28... Rd7 $19 29. Rxa7 Rxa7) 29. Nxd5 {[%emt 0:00:00]} Rb7 {[%emt 0:00:00]} 30. Reb1 {[%emt 0:00:00]} Nxc3 {[%emt 0:00:00]} ({Of course not} 30... exd5 $6 31. Rxb5 Rxc3 32. Ra8+ Bf8 33. Nf4 $11) (30... Nxd4 $1 $17 {White must now prevent ...Ne2+.} 31. Rxb6 Rxb6 32. Nxb6 (32. Ne7+ Kf8 $17) 32... Rd8 33. cxd4 Bxd4) 31. Rxb6 {[%emt 0:00:00]} (31. Nxc3 $11 {remains equal.} Rxc3 32. Ra8+ Bf8 33. Nc5) 31... Rxb6 {[%emt 0:00:00]} ({Don't play} 31... Nxd5 32. Rxb7 Bxd4 33. Rc1 $16) (31... Rd7 {is interesting.} 32. Rc6 Ne2+ 33. Kf1 Rcd8) 32. Nxb6 {[%emt 0:00:00]} Rb8 {[%emt 0:00:00]} 33. Nd7 {[%emt 0:00:00]} Rd8 {[%emt 0:00:00]} 34. N7e5 {[%emt 0:00:00]} Ne2+ {[%emt 0:00:00]} 35. Kf1 {[%emt 0:00:00]} Nxd4 {[%emt 0:00:00]} 36. Ra7 {[%emt 0:00:00] [#]} Nc6 $1 {[%emt 0:00:00]} 37. Nxc6 {[%emt 0:00:00]} Rxd3 $15 {[%emt 0:00:00][%mdl 4096] Endgame KRB-KRN} 38. Ra8+ {[%emt 0:00:00]} Bf8 {[%emt 0:00:00]} 39. Ne5 {[%emt 0:00:00]} Rd5 {[%emt 0:00:00]} 40. f4 {[%emt 0:00:00]} f6 {[%emt 0:00:00]} (40... g5 $5 41. g3 gxf4 42. gxf4 Rd4 $17) 41. Nf3 {[%emt 0:00:00]} Kf7 {[%emt 0:00:00]} (41... g5 $15 42. fxg5 fxg5) 42. Ra7+ $11 {[%emt 0:00:00] The position is equal.} Be7 {[%emt 0:00:00]} 43. g5 $1 {[%emt 0:00:00]} Rf5 {[%emt 0:09:00]} 44. g3 {[%emt 0:00:00]} Rd5 {[%emt 0:00:00]} 45. Ke2 {[%emt 0:00:00]} Ke8 {[%emt 0:00:00][%cal Rf6g5]} 46. gxf6 {[%emt 0:00:00]} Bxf6 {[%emt 0:00:00]} 47. Rxh7 {[%emt 0:00:00]} e5 {[%emt 0:00:00]} 48. fxe5 {[%emt 0:00:00]} Bxe5 {[%emt 0:00:00]} 49. Nh4 {[%emt 0:00:00]} Bxg3 {[%emt 0:00:00]} 50. Nxg6 {[%emt 0:00:00]} Bd6 {[%emt 0:00:00]} 51. Nh4 {[%emt 0:00:00]} Be7 {[%emt 0:00:00]} 52. Nf3 {[%emt 0:00:00]} Kd7 {[%emt 0:00:00]} 53. Ke3 {[%emt 0:00:00]} Ke6 {[%emt 0:00:00]} 54. Ke4 {[%emt 0:00:00]} Bf6 {[%emt 0:00:00]} 55. Ra7 {[%emt 0:00:00]} Rd6 {[%emt 0:00:00]} 56. Ra5 {[%emt 0:00:00]} Rc6 {[%emt 0:00:00]} 57. Nd4+ {[%emt 0:00:00]} Bxd4 {[%emt 0:00:00]} 58. Kxd4 {[%emt 0:00:00]} Kd6 {[%emt 0:00:00]} 59. Rd5+ {[%emt 0:00:00]} Kc7 {[%emt 0:00:00]} 60. Rc5 {[%emt 0:00:00]} Rxc5 {[%emt 0:00:00]} 61. Kxc5 {[%emt 0:00:00] Weighted Error Value: White=0.13 (very precise) /Black=0.10 (very precise)} 1/2-1/2

[Event "Uppsala GM June 2022"]
[Site "Uppsala"]
[Date "2022.06.13"]
[Round "1.5"]
[White "Trost, Edvin"]
[Black "Falkevall, Axel"]
[Result "1-0"]
[ECO "E06"]
[WhiteElo "2366"]
[BlackElo "2290"]
[Annotator "TA"]
[PlyCount "119"]
[EventDate "2022.06.09"]
[EventType "tourn"]
[EventCountry "SWE"]
[SourceTitle "playchess.com"]
[Source "ChessBase"]
[SourceQuality "1"]
[TimeControl "5400+30"]

{[%evp 16,119,13,1,27,13,18,13,20,23,8,8,21,-26,-15,-15,0,0,2,-41,0,0,0,0,0,0,-12,-20,-4,-22,-30,-408,-408,-442,-438,-436,-452,-489,-490,-465,-456,-504,-493,-479,-409,-470,-368,-368,-326,-423,-417,-480,-294,-357,-343,-332,0,0,0,0,0,0,0,0,0,0,0,0,-7,-187,-189,-201,-40,-150,-127,-225,-214,-131,-185,-215,-142,-205,-143,-452,-412,-391,-405,-570,-547,-437,0,0,0,0,0,0,0,0,0,0,29970,29973,29970,29972,29970,29970]} 1. d4 {[%emt 0:00:06]} Nf6 {[%emt 0:00:11]} 2. Nf3 {[%emt 0:00:18]} d5 {[%emt 0:00:21]} 3. c4 {[%emt 0:00:15]} e6 {[%emt 0:00:15]} 4. g3 {[%emt 0:00:25]} Bb4+ {[%emt 0:00:32]} 5. Bd2 {[%emt 0:00:25]} Be7 {[%emt 0:00:08]} 6. Bg2 {[%emt 0:00:05]} O-O {[%emt 0:00:28]} 7. O-O {[%emt 0:00:06]} c6 {[%emt 0:00:20]} 8. Bf4 {[%emt 0:01:16]} b6 {[%emt 0:03:40]} 9. Nc3 {[%emt 0:04:07]} dxc4 {[%emt 0:06:50] E06: Closed Catalan: Early deviations.} 10. Ne5 {[%emt 0:01:16][%csl LRc4,LRc6]} Nd5 {[%emt 0:01:07]} 11. Nxc4 {[%emt 0:00:35]} Nxf4 {[%emt 0:01:25] The position is equal.} 12. gxf4 {[%emt 0:00:51]} Bb7 {[%emt 0:13:36]} 13. Ne5 {[%emt 0:02:18]} f6 {[%emt 0:08:52] [#]} 14. Ng4 $146 {[%emt 0:02:28]} (14. Nd3 {should be considered.}) ({Predecessor:} 14. Nd3 Qxd4 15. Qb3 Qd7 16. f5 Na6 17. Rfd1 Qe8 18. Nb5 Kh8 19. Qxe6 Rd8 20. Nxa7 Rd6 21. Qe3 {0-1 (46) Dimakiling,O (2500)-Mahjoob,M (2479) Cebu 2007}) 14... Bd6 {[%emt 0:06:24]} 15. Qb3 {[%emt 0:04:13]} Bxf4 {[%emt 0:03:18]} 16. Qxe6+ {[%emt 0:01:05]} Kh8 {[%emt 0:00:38]} 17. d5 {[%emt 0:08:26][%cal Rd5c6]} c5 {[%emt 0:10:47]} (17... Bc8 $5 18. Qe4 Bc7 $14) 18. e3 {[%emt 0:01:05]} Bc8 {[%emt 0:01:52]} 19. exf4 {[%emt 0:12:15] Threatens to win with Qe2.} Bxe6 {[%emt 0:00:15]} 20. dxe6 {[%emt 0:00:04]} Na6 $1 {[%emt 0:01:27]} 21. Rad1 {[%emt 0:03:30]} Qe8 {[%emt 0:04:48]} 22. Bxa8 {[%emt 0:04:07]} Qxa8 {[%emt 0:00:26]} 23. Nb5 {[%emt 0:11:32][%mdl 8192] Prevents Nc7.} (23. Nd5 $11 {and White has nothing to worry.}) 23... Qe8 $19 {[%emt 0:03:10][%csl LRb5,LRe6]} 24. a4 {[%emt 0:06:01]} Qxe6 {[%emt 0:04:38]} 25. Ne3 {[%emt 0:00:20]} Qe4 {[%emt 0:03:15][%csl LRa4,LRf4]} 26. f5 {[%emt 0:02:25]} Qxa4 {[%emt 0:01:39]} 27. Nc3 {[%emt 0:00:06]} Qc6 {[%emt 0:01:52]} 28. Rd2 {[%emt 0:00:33]} Nb4 {[%emt 0:06:05]} 29. Rfd1 {[%emt 0:03:27]} g6 {[%emt 0:02:08]} 30. Ne2 {[%emt 0:01:18]} Qc8 {[%emt 0:03:30]} 31. fxg6 {[%emt 0:05:38]} hxg6 {[%emt 0:01:13]} 32. Nf4 {[%emt 0:00:58]} Qe8 {[%emt 0:05:29]} 33. Rd7 {[%emt 0:03:39][%cal Od7e7]} Nc6 {[%emt 0:02:49] Inhibits Re7.} 34. R1d6 {[%emt 0:01:28]} Ne5 {[%emt 0:00:56]} 35. Rxa7 {[%emt 0:21:19]} Qb8 $2 {[%emt 0:02:42]} ({Black should play} 35... Nf3+ $19 36. Kg2 Nh4+ 37. Kf1 Qe4) 36. Nxg6+ $1 $11 {[%emt 0:00:00]} Nxg6 {[%emt 0:00:15]} (36... Kg8 $5 37. Ne7+ Kh8 38. Ng6+ Nxg6 $11) 37. Rdd7 {[%emt 0:00:00] Intending Rh7+ and mate.} Rd8 {[%emt 0:00:59]} 38. Rh7+ {[%emt 0:00:00]} Kg8 {[%emt 0:00:04] Hoping for ...Qf4.} 39. Rag7+ {[%emt 0:00:00]} Kf8 {[%emt 0:00:03][%cal Ob8f4]} 40. Rxg6 {[%emt 0:00:00]} Qe5 {[%emt 0:00:50][%cal Od8d1] And now ...Rd1+! would win.} 41. Rgg7 $1 {[%emt 0:00:00]} f5 {[%emt 0:00:20]} 42. Rg5 {[%emt 0:00:00]} (42. Rb7 $11 {and White stays safe.}) 42... Qxb2 $19 {[%emt 0:00:07] Strongly threatening ...f4.} 43. Rxf5+ {[%emt 0:00:00]} Kg8 $2 {[%emt 0:00:05]} (43... Ke8 $1 $19 {White must now prevent ...Rd7.} 44. Kg2 Qd4) 44. Ra7 {[%emt 0:00:00] Against Rd7} ({Better is} 44. Re7 $15) 44... Qb1+ $17 {[%emt 0:00:39]} 45. Kg2 {[%emt 0:00:00]} Qe4+ {[%emt 0:00:30]} 46. Kg3 {[%emt 0:00:00][%cal Oe3g4]} Rd6 {[%emt 0:00:19]} 47. Rf4 {[%emt 0:00:00]} Rg6+ {[%emt 0:00:18]} 48. Ng4 {[%emt 0:00:00]} Qd3+ {[%emt 0:01:05]} (48... Qe5 49. Ra8+ Kh7 50. Raf8 $17) 49. Kh4 $2 {[%emt 0:00:00][%mdl 8192]} (49. f3 $17 {was the crucial defense.}) 49... Qd8+ $19 {[%emt 0:00:09]} 50. Kh3 {[%emt 0:00:12] [#]} b5 $1 {[%emt 0:01:31]} 51. Rff7 {[%emt 0:03:25]} (51. Ra3 {keeps fighting.}) 51... Qg5 {[%emt 0:00:46][%csl Gg6][%cal Rg5g4]} 52. f3 {[%emt 0:00:32] [#]} Qh5+ $2 {[%emt 0:00:18]} (52... Ra6 $3 $19 {[%mdl 512]} 53. Rxa6 (53. Kg3 Rxa7) 53... Kxf7) 53. Kg3 $11 {[%emt 0:00:01]} c4 {[%emt 0:00:56]} 54. Rfe7 {[%emt 0:00:29][%cal Ra7a8] Prevents Qe5+. Really sharp!} Kf8 $1 {[%emt 0:00:18]} 55. Rf7+ {[%emt 0:00:39]} Kg8 {[%emt 0:00:07]} 56. Rfe7 {[%emt 0:00:05][%cal Ra7a8] Prevents Qe5+.} Kf8 $1 {[%emt 0:00:13]} 57. Rh7 {[%emt 0:02:01][%cal Ra7a8]} Qe5+ $2 {[%emt 0:00:10][%mdl 8192]} (57... Rxg4+ $11 58. fxg4 Qe5+ 59. Kh3 Qc3+ 60. Kh4 Qf6+ 61. Kh3 Kg8) 58. Kh3 {[%emt 0:00:01] White mates.} Qd5 {[%emt 0:01:51]} 59. Rh8+ {[%emt 0:00:38]} Rg8 {[%emt 0:00:05]} 60. Rxg8+ {[%emt 0:00:06] Both players deserved the win here.  Weighted Error Value: White=0.41/Black=0.46} 1-0

[Event "Uppsala GM June 2022"]
[Site "Uppsala"]
[Date "2022.06.14"]
[Round "2.1"]
[White "Nilsson, Joakim"]
[Black "Trost, Edvin"]
[Result "1/2-1/2"]
[ECO "E11"]
[WhiteElo "2237"]
[BlackElo "2366"]
[Annotator "RC"]
[PlyCount "83"]
[EventDate "2022.06.09"]
[EventType "tourn"]
[EventCountry "SWE"]
[SourceTitle "playchess.com"]
[Source "ChessBase"]
[SourceQuality "1"]
[TimeControl "5400+30"]

1. d4 {[%emt 0:00:11]} d5 {[%emt 0:00:27]} 2. c4 {[%emt 0:00:06]} e6 {[%emt 0:00:11]} 3. Nf3 {[%emt 0:01:01]} Nf6 {[%emt 0:00:20]} 4. g3 {[%emt 0:00:10]} Bb4+ {[%emt 0:00:29]} 5. Bd2 {[%emt 0:00:09]} a5 {[%emt 0:00:30]} 6. Bg2 {[%emt 0:00:09]} O-O {[%emt 0:00:07]} 7. O-O {[%emt 0:00:07]} dxc4 {[%emt 0:02:31]} 8. Qc2 {[%emt 0:01:01]} Bxd2 {[%emt 0:01:26]} 9. Nbxd2 {[%emt 0:00:09]} b5 {[%emt 0:01:06]} 10. a4 {[%emt 0:01:04]} c6 {[%emt 0:00:35]} 11. e3 {[%emt 0:01:03]} Na6 {[%emt 0:07:05]} 12. b3 {[%emt 0:13:37]} Nb4 {[%emt 0:00:32]} 13. Qc1 {[%emt 0:02:54]} cxb3 {[%emt 0:08:44]} 14. Nxb3 {[%emt 0:00:43]} Nd7 {[%emt 0:03:57]} 15. Rd1 {[%emt 0:09:55]} Ba6 {[%emt 0:05:16]} 16. Qd2 {[%emt 0:17:46]} bxa4 {[%emt 0:24:27]} 17. Rxa4 {[%emt 0:01:28]} Bc4 {[%emt 0:00:56]} 18. Nxa5 {[%emt 0:05:16]} Rxa5 {[%emt 0:02:03]} 19. Qxb4 {[%emt 0:01:42]} Rxa4 {[%emt 0:00:03]} 20. Qxa4 {[%emt 0:00:09]} Bd5 {[%emt 0:00:16]} 21. Nd2 {[%emt 0:02:21]} Bxg2 {[%emt 0:02:11]} 22. Kxg2 {[%emt 0:00:46]} c5 {[%emt 0:01:17]} 23. Ne4 {[%emt 0:02:59]} Qc7 {[%emt 0:04:24]} 24. dxc5 {[%emt 0:20:33]} Nxc5 {[%emt 0:00:22]} 25. Qc4 {[%emt 0:01:50]} Qb7 {[%emt 0:00:15]} 26. Qxc5 {[%emt 0:00:20]} Qxe4+ {[%emt 0:00:06]} 27. Kg1 {[%emt 0:00:07]} h6 {[%emt 0:00:27]} 28. Qe7 {[%emt 0:01:39]} Qa8 {[%emt 0:00:59]} 29. Rd7 {[%emt 0:00:44]} Qa1+ {[%emt 0:00:37]} 30. Kg2 {[%emt 0:00:10]} Qa8+ {[%emt 0:00:16]} 31. Kg1 {[%emt 0:01:23]} Qf3 {[%emt 0:00:28]} 32. Rd8 {[%emt 0:00:25]} Rxd8 {[%emt 0:00:22]} 33. Qxd8+ {[%emt 0:00:06]} Kh7 {[%emt 0:00:03]} 34. Qd3+ {[%emt 0:00:14]} g6 {[%emt 0:00:04]} 35. Qd4 {[%emt 0:00:52]} Kg8 {[%emt 0:00:14]} 36. h4 {[%emt 0:00:35]} h5 {[%emt 0:00:13]} 37. Qe5 {[%emt 0:00:38]} Kf8 {[%emt 0:00:35]} 38. Qb8+ {[%emt 0:00:44]} Ke7 {[%emt 0:00:25]} 39. Qc7+ {[%emt 0:00:15]} Kf6 {[%emt 0:00:15]} 40. Qd8+ {[%emt 0:00:11]} Kf5 {[%emt 0:00:57]} 41. Qg5+ {[%emt 0:00:43]} Ke4 {[%emt 0:00:07]} 42. Qd8 {[%emt 0:00:35]} 1/2-1/2

[Event "Uppsala GM June 2022"]
[Site "Uppsala"]
[Date "2022.06.14"]
[Round "2.2"]
[White "Von Bahr, Oskar"]
[Black "Chatalbashev, Boris"]
[Result "1/2-1/2"]
[ECO "B36"]
[WhiteElo "2373"]
[BlackElo "2536"]
[Annotator "RC"]
[PlyCount "80"]
[EventDate "2022.06.09"]
[EventType "tourn"]
[EventCountry "SWE"]
[SourceTitle "playchess.com"]
[Source "ChessBase"]
[SourceQuality "1"]
[TimeControl "5400+30"]

1. e4 {[%emt 0:02:26]} c5 {[%emt 0:00:20]} 2. Nf3 {[%emt 0:00:10]} Nc6 {[%emt 1:31:10]} 3. d4 {[%emt 0:00:31]} cxd4 {[%emt 0:00:00]} 4. Nxd4 {[%emt 0:00:02]} g6 {[%emt 0:00:00]} 5. c4 {[%emt 0:00:22]} Nf6 {[%emt 0:00:00]} 6. Nc3 {[%emt 0:00:09]} d6 {[%emt 0:00:00]} 7. Be2 {[%emt 0:00:08]} Nxd4 {[%emt 0:00:00]} 8. Qxd4 {[%emt 0:00:04]} Bg7 {[%emt 0:00:00]} 9. Be3 {[%emt 0:00:21]} O-O {[%emt 0:00:00]} 10. Qd2 {[%emt 0:00:07]} a5 {[%emt 0:00:00]} 11. O-O {[%emt 0:00:48]} a4 {[%emt 0:00:00]} 12. Bd4 {[%emt 0:00:41]} Qa5 {[%emt 0:00:00]} 13. Rad1 {[%emt 0:00:27]} Bd7 {[%emt 0:00:00]} 14. Qe3 {[%emt 0:01:17]} Bc6 {[%emt 0:00:00]} 15. Nd5 {[%emt 0:01:50]} Bxd5 {[%emt 0:00:00]} 16. exd5 {[%emt 0:00:10]} Rfe8 {[%emt 0:00:00]} 17. g3 {[%emt 0:02:37]} Nd7 {[%emt 0:00:00]} 18. Bxg7 {[%emt 0:02:29]} Kxg7 {[%emt 0:00:00]} 19. Bg4 {[%emt 0:02:58]} Nf6 {[%emt 0:00:00]} 20. Bh3 {[%emt 0:09:46]} b5 {[%emt 0:00:00]} 21. c5 {[%emt 0:13:03]} dxc5 {[%emt 0:00:00]} 22. Qxc5 {[%emt 0:00:57]} b4 {[%emt 0:00:00]} 23. Rc1 {[%emt 0:07:12]} a3 {[%emt 0:00:00]} 24. bxa3 {[%emt 0:09:42]} Qxc5 {[%emt 0:00:00]} 25. Rxc5 {[%emt 0:00:04]} Rxa3 {[%emt 0:00:00]} 26. Rb1 {[%emt 0:06:45]} Rb8 {[%emt 0:00:00]} 27. Rb2 {[%emt 0:03:09]} Rd3 {[%emt 0:00:00]} 28. Bf1 {[%emt 0:01:24]} Rd1 {[%emt 0:00:00]} 29. Kg2 {[%emt 0:01:39]} Ra1 {[%emt 0:00:00]} 30. Bc4 {[%emt 0:05:13]} Kf8 {[%emt 0:00:00]} 31. Ra5 {[%emt 0:03:12]} Rc1 {[%emt 0:00:00]} 32. Bb3 {[%emt 0:01:42]} Ne4 {[%emt 0:00:00]} 33. Ra7 {[%emt 0:01:26]} Nc3 {[%emt 0:00:00]} 34. d6 {[%emt 0:04:41]} e6 {[%emt 0:00:00]} 35. Rd2 {[%emt 0:00:52]} Rd8 {[%emt 0:01:04]} 36. Ra6 {[%emt 0:04:00]} Nb5 {[%emt 0:02:14]} 37. Rb6 {[%emt 0:02:27]} Rc5 {[%emt 0:00:23]} 38. Ba4 {[%emt 0:01:47]} Nc3 {[%emt 0:00:05]} 39. Rxb4 {[%emt 0:02:06]} Nd5 {[%emt 0:01:58]} 40. Rb5 {[%emt 0:02:50]} Rxb5 {[%emt 0:00:06]} 1/2-1/2